bitfinex/quotes_ETHUSD_20251011
["timestamp","ask_amount","ask_price","bid_price","bid_amount"]
[1760218179874,0.1336,3731.0,3730.9,2.68031842]
[1760218183172,0.1336,3731.0,3730.6,0.002]
[1760218183398,0.1336,3730.7,3730.6,2.68253396]
[1760218184487,0.1336,3730.7,3730.6,0.002]
[1760218185502,2.91306211,3730.7,3730.6,0.002]
[1760218186578,0.1336,3730.7,3730.6,0.002]
[1760218186781,0.001,3731.6,3730.9,2.68029401]
[1760218186974,0.1336,3730.9,3730.7,2.68040782]
[1760218187173,0.099,3731.4,3730.6,0.002]
[1760218187412,2.68030158,3731.0,3730.6,0.002]
[1760218187701,2.68046211,3730.7,3730.6,0.293826]
[1760218187910,2.77946211,3730.7,3730.6,0.293826]
[1760218191494,3.41306211,3730.7,3730.6,0.293826]
[1760218191821,3.41306211,3730.7,3730.6,1e-08]
[1760218193223,5.33306211,3730.7,3730.6,1e-08]
[1760218194220,2.68118079,3729.7,3729.6,1e-08]
[1760218194422,0.1889,3729.8,3729.6,1e-08]
[1760218194624,0.0999,3729.7,3729.6,1e-08]
[1760218194789,0.1908,3729.9,3729.6,1e-08]
[1760218194988,0.1908,3729.9,3729.6,2.68125155]
[1760218195188,0.1008,3730.9,3729.6,0.53647174]
[1760218195389,0.1008,3730.9,3729.7,0.0268118]
[1760218195626,0.1008,3730.9,3729.6,0.02681253]
[1760218195928,0.1008,3731.4,3729.7,0.4363]
[1760218196089,2.67966167,3731.9,3729.7,0.4363]
[1760218196290,2.67966167,3731.9,3729.6,1e-08]
[1760218196291,2.67966167,3731.9,3731.0,2.6802051]
[1760218196509,0.1008,3731.5,3730.1,0.6532]
[1760218196708,0.001,3732.0,3730.1,0.2169]
[1760218196887,0.001,3732.0,3731.4,2.67995463]
[1760218197238,0.001,3732.0,3730.3,2.68074953]
[1760218197529,0.1336,3731.0,3730.9,2.68031842]
[1760218198339,2.68082832,3731.6,3729.9,0.4363]
[1760218198533,2.68082832,3731.6,3729.9,3.11727636]
[1760218198701,0.001,3731.6,3731.1,2.68014223]
[1760218198890,0.001,3731.6,3730.6,0.2169]
[1760218199094,0.001,3731.6,3731.1,2.68015825]
[1760218199322,0.001,3731.6,3731.5,2.67988744]
[1760218199525,0.001,3731.6,3730.7,3.11674026]
[1760218199723,0.001,3731.6,3731.5,2.67988744]
[1760218200924,0.001,3731.6,3731.5,3.11618744]
[1760218201369,0.001,3731.6,3731.5,3.14298631]
[1760218201529,0.001,3731.6,3731.5,2.67988744]
[1760218201726,0.001,3731.6,3730.8,0.33336403]
[1760218201957,0.1,3731.6,3730.3,2.68070297]
[1760218202255,0.1,3731.6,3730.6,0.002]
[1760218202256,0.001,3731.6,3730.6,0.002]
[1760218202470,2.67988744,3731.5,3730.6,0.002]
[1760218202756,0.001,3731.6,3730.6,0.002]
[1760218202757,0.099,3731.4,3730.6,0.002]
[1760218203143,2.68028597,3731.0,3730.6,0.002]
[1760218203342,0.099,3731.4,3730.6,0.002]
[1760218203559,2.68040087,3730.8,3730.6,0.002]
[1760218203758,0.099,3731.4,3730.6,0.002]
[1760218204128,2.68019337,3731.1,3730.6,0.002]
[1760218204533,0.099,3731.0,3730.6,0.002]
[1760218205057,2.67989027,3731.5,3730.7,2.68046211]
[1760218205224,2.67989027,3731.5,3730.6,2.68252628]
[1760218205426,2.67997047,3731.4,3730.6,2.68252628]
[1760218205625,0.001,3731.6,3730.7,2.68045812]
[1760218205626,0.099,3731.3,3730.7,2.68045812]
[1760218206367,0.099,3731.3,3730.6,0.002]
[1760218206529,0.099,3731.3,3730.6,2.68252773]
[1760218206934,0.001,3731.6,3731.0,2.68023465]
[1760218207139,0.001,3731.6,3730.6,0.002]
[1760218207339,0.001,3731.6,3730.6,0.31388404]
[1760218207540,0.001,3731.6,3731.4,2.67990915]
[1760218207765,0.001,3731.6,3731.3,2.68001859]
[1760218207963,0.001,3731.6,3731.5,2.67988744]
[1760218208540,0.001,3731.6,3731.5,3.14298631]
[1760218208742,0.001,3731.6,3731.5,3.73864348]
[1760218209637,0.001,3731.6,3731.5,3.71184461]
[1760218210063,0.001,3731.6,3731.5,3.11618744]
[1760218210253,0.001,3731.6,3731.5,3.14298631]
[1760218210448,0.001,3731.6,3731.5,2.67988744]
[1760218210663,0.001,3731.6,3731.5,3.11618744]
[1760218211248,0.001,3731.6,3731.5,2.67988744]
[1760218211577,0.001,3731.6,3731.5,3.65217472]
[1760218211772,0.001,3731.6,3731.5,3.11618744]
[1760218212154,0.001,3731.6,3731.5,2.67988744]
[1760218212775,0.001,3731.6,3731.5,3.14298631]
[1760218213072,0.001,3731.6,3731.5,5.03618744]
[1760218214173,0.001,3731.6,3731.5,3.11618744]
[1760218214419,0.001,3731.6,3731.5,2.70668631]
[1760218214698,0.001,3731.6,3731.5,3.14298631]
[1760218214879,0.001,3731.6,3731.5,2.70668631]
[1760218215067,0.001,3731.6,3731.5,2.67988744]
[1760218216576,0.001,3731.6,3731.4,2.67992794]
[1760218216880,0.001,3731.6,3731.5,2.67988744]
[1760218217082,0.001,3731.6,3731.2,2.68003733]
[1760218217477,0.1008,3731.5,3730.6,0.002]
[1760218217692,0.001,3731.6,3730.6,0.002]
[1760218218002,2.68088724,3731.6,3730.8,2.68035923]
[1760218218189,0.001,3731.6,3730.6,0.002]
[1760218218499,0.1008,3731.5,3730.6,0.002]
[1760218218668,2.68015174,3731.2,3730.6,0.002]
[1760218218869,2.68003701,3731.3,3730.6,0.002]
[1760218219669,0.001,3731.6,3730.6,0.002]
[1760218219869,0.1336,3730.7,3730.6,2.68253396]
[1760218220272,0.001,3731.6,3731.5,2.67988744]
[1760218220614,0.001,3731.6,3730.6,0.5719]
[1760218220615,0.001,3731.6,3731.4,2.67995473]
[1760218220806,0.001,3731.6,3731.5,2.67988744]
[1760218222584,0.1346,3731.6,3731.5,2.67988744]
[1760218223115,0.1346,3731.6,3730.9,0.1336]
[1760218223320,0.1346,3731.6,3730.6,3.1187845]
[1760218223321,0.001,3731.6,3731.2,2.68004569]
[1760218223506,0.001,3731.6,3730.6,0.4383]
[1760218223507,0.001,3731.6,3731.3,2.6800088]
[1760218223711,0.1336,3731.2,3730.6,0.5719]
[1760218223885,2.67988744,3731.5,3730.6,0.002]
[1760218224422,0.1017,3731.4,3730.6,0.002]
[1760218224627,2.78166403,3731.4,3730.6,0.002]
[1760218224825,0.1017,3731.4,3730.6,0.002]
[1760218225024,2.68046211,3730.7,3730.6,0.002]
[1760218225228,2.6802995,3731.0,3730.6,0.002]
[1760218225396,2.78216211,3730.7,3730.6,0.002]
[1760218226591,3.41576211,3730.7,3730.6,0.002]
[1760218226783,5.72157583,3730.7,3730.6,0.002]
[1760218227683,5.72157583,3730.7,3730.2,0.002]
[1760218227684,3.31434953,3730.3,3730.2,1e-08]
[1760218227891,6.55916325,3730.3,3730.2,1e-08]
[1760218228090,2.68174531,3729.0,3726.3,0.6542]
[1760218228290,2.68282529,3727.5,3726.3,3.12091476]
[1760218228520,2.68282529,3727.5,3724.8,2.68465514]
[1760218228521,0.099,3727.5,3726.1,2.68377094]
[1760218228689,2.68312081,3727.1,3726.1,2.68377094]
[1760218229006,0.099,3727.0,3725.3,0.4373]
[1760218229214,2.78213488,3727.0,3726.2,2.68369769]
[1760218229420,0.099,3727.0,3726.4,2.68354655]
[1760218229628,0.099,3727.0,3725.1,0.2169]
[1760218229629,0.099,3726.9,3725.0,0.4373]
[1760218229845,0.939,3727.4,3725.1,0.02684491]
[1760218230040,3.62184933,3727.4,3724.8,1.92]
[1760218230337,0.939,3727.4,3725.2,0.4373]
[1760218230543,0.099,3727.3,3725.3,2.71119103]
[1760218230750,0.099,3727.2,3725.4,0.3148491]
[1760218230931,2.68312315,3727.0,3726.0,2.68382771]
[1760218231132,0.099,3727.1,3726.3,2.68356411]
[1760218231440,0.099,3727.1,3726.1,2.6837203]
[1760218231651,0.099,3727.1,3726.4,2.68351164]
[1760218231854,0.099,3727.1,3725.5,2.3573]
[1760218231855,0.099,3727.1,3725.5,1.92]
[1760218232013,0.099,3727.1,3725.9,2.68389814]
[1760218232215,2.7820642,3727.1,3725.9,2.68389814]
[1760218232422,2.68348426,3726.5,3724.8,2.68470143]
[1760218232622,3.31650719,3727.3,3724.4,20.10717406]
[1760218232623,2.78256101,3726.4,3724.6,0.4373]
[1760218232834,2.68363185,3726.3,3725.4,2.68425696]
[1760218233031,0.099,3726.4,3724.7,0.02684779]
[1760218233331,0.38581372,3727.0,3724.7,0.02684779]
[1760218233532,0.939,3727.4,3724.7,0.02684779]
[1760218233533,2.68357817,3726.4,3724.8,0.4373]
[1760218233761,0.939,3727.4,3725.1,1.92]
[1760218233918,0.099,3728.7,3726.7,1.92]
[1760218234115,0.099,3728.6,3725.9,22.57417894]
[1760218234418,0.099,3728.5,3726.3,1.92]
[1760218234645,0.099,3728.4,3726.8,2.68324767]
[1760218234863,2.68220574,3728.3,3727.0,2.68309286]
[1760218235061,0.099,3728.4,3726.4,0.4373]
[1760218235269,0.099,3728.4,3727.7,2.6825957]
[1760218235559,0.1925,3728.9,3726.3,0.4373]
[1760218235782,2.68262551,3727.7,3726.1,2.68377123]
[1760218235922,2.78152618,3727.9,3726.3,1.92]
[1760218236120,0.099,3727.8,3726.4,0.02683555]
[1760218236364,0.099,3727.8,3726.5,2.68344785]
[1760218236365,2.68284166,3727.4,3726.5,2.68344785]
[1760218236518,2.68284166,3727.4,3725.8,2.90088608]
[1760218236519,0.099,3727.4,3725.9,0.02683915]
[1760218236947,0.099,3727.4,3726.7,2.6832716]
[1760218237141,0.099,3727.4,3726.6,2.6833975]
[1760218237341,0.099,3727.4,3726.7,2.68330873]
[1760218237826,0.099,3727.4,3726.4,2.68354172]
[1760218238026,2.78184097,3727.4,3726.3,2.68361523]
[1760218238228,0.099,3727.4,3726.7,2.68333867]
[1760218238464,0.099,3727.4,3725.4,2.68423216]
[1760218238666,0.099,3728.2,3726.8,2.68326714]
[1760218238825,0.099,3728.2,3726.3,3.33782204]
[1760218239030,0.099,3728.2,3725.7,2.68405937]
[1760218239031,0.6336,3728.0,3726.4,0.02683555]
[1760218239227,0.6336,3728.0,3725.7,0.4373]
[1760218239228,0.6336,3728.0,3726.8,2.68320473]
[1760218239481,0.6336,3728.0,3726.6,2.68340384]
[1760218239482,2.6826791,3727.7,3726.6,2.68340384]
[1760218239652,2.78170282,3727.6,3726.7,2.68333914]
[1760218239857,0.099,3727.6,3726.1,2.6837588]
[1760218240043,0.099,3727.6,3726.3,2.68362719]
[1760218240392,0.099,3727.6,3726.8,2.68320709]
[1760218240540,0.099,3727.6,3726.4,0.02683555]
[1760218240736,0.099,3727.6,3725.9,2.68391529]
[1760218240966,0.099,3727.6,3726.7,2.68327513]
[1760218241171,0.099,3727.6,3726.0,2.6837946]
[1760218241352,0.099,3727.6,3727.0,2.68306102]
[1760218241552,0.099,3727.6,3726.2,2.68369921]
[1760218241553,0.099,3727.9,3726.2,2.68369921]
[1760218241750,2.68260898,3727.8,3726.9,2.68313343]
[1760218241976,2.68260898,3727.8,3727.0,2.68310911]
[1760218242177,0.099,3727.9,3726.2,0.33519992]
[1760218242487,2.6827152,3727.6,3726.8,2.68320003]
[1760218242644,2.6827152,3727.6,3726.5,2.68348244]
[1760218242645,0.099,3727.5,3725.8,2.68398733]
[1760218242844,0.099,3727.4,3726.2,2.68364487]
[1760218243073,0.6336,3728.1,3726.2,2.68364487]
[1760218243074,2.68313384,3727.0,3726.2,2.68364487]
[1760218243257,0.099,3727.3,3725.4,1.92]
[1760218243589,0.6336,3728.1,3725.6,2.25172872]
[1760218243745,0.099,3727.2,3725.7,0.02684059]
[1760218243947,0.099,3727.2,3725.8,3.12258733]
[1760218244152,0.099,3727.2,3726.9,2.68313756]
[1760218244486,0.6336,3728.1,3725.8,3.12258733]
[1760218244487,2.68264902,3727.7,3726.6,2.68334279]
[1760218244688,0.099,3727.6,3726.7,2.68328]
[1760218244892,2.68296494,3727.3,3726.2,2.68369921]
[1760218245103,0.099,3727.2,3726.2,2.68369921]
[1760218245292,0.099,3727.2,3725.9,2.68391529]
[1760218245488,0.099,3727.2,3726.5,2.68347599]
[1760218245725,0.099,3727.2,3726.6,2.68339142]
[1760218246659,0.099,3727.2,3726.5,2.68346712]
[1760218246821,0.099,3727.2,3726.6,2.68339595]
[1760218247015,0.099,3727.2,3726.7,2.68332628]
[1760218247253,0.099,3727.2,3726.6,2.6833916]
[1760218247557,0.099,3727.2,3726.1,2.68376746]
[1760218247765,0.099,3727.2,3726.6,2.68336957]
[1760218248262,0.099,3727.2,3726.5,2.68346967]
[1760218248463,0.099,3727.2,3726.6,2.68340244]
[1760218249354,2.68297965,3727.2,3726.5,2.6834771]
[1760218249565,0.099,3727.1,3726.5,2.6834771]
[1760218249727,0.099,3727.1,3726.4,2.68354231]
[1760218250153,0.099,3727.1,3726.5,2.68347915]
[1760218250862,2.5536,3728.1,3725.3,2.3586]
[1760218250863,1.92,3728.7,3726.0,0.4386]
[1760218251065,0.099,3727.4,3726.7,2.68330933]
[1760218251253,0.099,3727.4,3726.8,2.68326612]
[1760218251564,0.099,3727.3,3726.7,2.68333069]
[1760218251749,0.099,3727.3,3726.5,2.71031062]
[1760218251993,0.099,3727.3,3726.6,2.6833606]
[1760218252264,0.099,3727.3,3726.5,2.71029901]
[1760218252476,2.68276863,3727.5,3724.7,2.5536]
[1760218252477,0.099,3727.2,3724.7,2.5536]
[1760218252684,2.6831769,3727.0,3726.1,2.68375558]
[1760218252970,2.78220512,3726.9,3726.1,2.68376397]
[1760218253270,0.099,3726.9,3726.2,2.68366268]
[1760218253468,0.099,3726.9,3726.1,2.68376165]
[1760218253669,0.099,3726.9,3725.3,2.68434756]
[1760218253857,0.099,3726.9,3726.6,0.002]
[1760218254057,2.78219869,3726.9,3726.6,0.002]
[1760218254262,0.099,3726.8,3726.6,0.002]
[1760218254444,2.68333914,3726.7,3726.6,0.002]
[1760218254628,0.099,3727.3,3726.6,0.002]
[1760218254835,0.099,3727.3,3726.7,2.68328482]
[1760218255129,2.68254747,3727.8,3726.6,0.002]
[1760218255130,2.68259294,3727.8,3726.6,0.002]
[1760218255355,0.099,3727.2,3726.6,0.002]
[1760218255558,2.68305116,3727.1,3726.6,0.002]
[1760218255789,0.099,3727.2,3726.6,0.002]
[1760218255940,2.78212831,3727.0,3726.6,0.002]
[1760218256140,0.099,3727.0,3726.6,0.002]
[1760218256340,0.099,3726.9,3726.6,0.002]
[1760218256567,2.78220732,3726.9,3726.6,0.002]
[1760218256782,2.7822749,3726.8,3726.6,0.002]
[1760218257280,0.099,3726.7,3726.6,0.002]
[1760218257486,2.68313463,3727.0,3726.6,0.002]
[1760218257664,0.099,3726.7,3726.6,0.002]
[1760218258071,2.78233914,3726.7,3726.6,0.002]
[1760218258470,0.099,3726.7,3726.6,0.002]
[1760218260969,0.099,3727.4,3726.6,0.002]
[1760218261180,2.68305061,3727.2,3726.6,0.002]
[1760218261358,2.68290719,3727.3,3726.6,0.002]
[1760218261559,2.68332509,3726.8,3726.6,0.002]
[1760218261803,2.68333914,3726.7,3726.6,0.002]
[1760218262003,0.099,3726.7,3726.6,0.002]
[1760218262159,2.78233914,3726.7,3726.6,0.002]
[1760218263193,0.099,3726.7,3726.6,0.002]
[1760218263879,2.78233914,3726.7,3726.6,0.002]
[1760218264397,0.099,3726.7,3726.6,0.002]
[1760218264969,2.78233914,3726.7,3726.6,0.002]
[1760218265698,0.099,3727.6,3726.6,0.002]
[1760218265901,0.099,3727.3,3726.6,0.002]
[1760218266490,2.68333914,3726.7,3726.6,0.002]
[1760218266985,2.78233914,3726.7,3726.6,0.002]
[1760218267962,2.7819792,3727.2,3726.6,0.002]
[1760218268768,2.68321857,3726.9,3726.6,0.002]
[1760218268983,2.68329398,3726.8,3726.6,0.002]
[1760218269180,2.68333914,3726.7,3726.6,0.002]
[1760218269361,0.099,3726.8,3726.6,0.002]
[1760218269567,0.099,3726.7,3726.6,0.002]
[1760218270278,2.68305332,3727.1,3726.6,0.002]
[1760218270766,0.099,3727.2,3726.6,0.002]
[1760218270767,2.78213343,3727.0,3726.6,0.002]
[1760218271064,2.68324884,3726.9,3726.6,0.002]
[1760218271266,0.099,3726.9,3726.6,0.002]
[1760218271484,0.099,3726.8,3726.6,0.002]
[1760218271866,2.68322688,3726.9,3726.6,0.002]
[1760218271867,2.78233914,3726.7,3726.6,0.002]
[1760218278333,0.099,3727.0,3726.6,0.002]
[1760218278517,2.78233914,3726.7,3726.6,0.002]
[1760218281922,2.68333914,3726.7,3726.6,0.002]
[1760218282513,2.78233914,3726.7,3726.6,0.002]
[1760218286341,9.34428945,3726.7,3726.6,0.002]
[1760218286514,2.78233914,3726.7,3726.6,0.002]
[1760218288960,2.78233914,3726.7,3726.2,1e-08]
[1760218288961,11.26428945,3726.7,3726.2,1e-08]
[1760218289131,0.6336,3726.1,3725.8,0.002]
[1760218289324,11.2489656,3725.9,3725.8,0.002]
[1760218289514,0.32623457,3726.0,3725.8,0.002]
[1760218289752,6.56195031,3726.9,3725.8,0.4604]
[1760218289987,6.56195031,3726.5,3725.8,0.002]
[1760218290190,2.68391529,3725.9,3725.8,0.002]
[1760218290397,0.099,3726.4,3725.8,0.002]
[1760218290694,6.56195031,3726.5,3725.8,0.002]
[1760218290903,2.68386272,3726.0,3725.8,0.002]
[1760218291104,2.68391529,3725.9,3725.8,0.002]
[1760218291311,2.78291529,3725.9,3725.8,0.002]
[1760218295278,2.68419753,3725.6,3724.7,2.68476009]
[1760218295509,2.68419753,3725.6,3724.5,9.70527084]
[1760218295510,2.68419753,3725.6,3724.8,2.68468608]
[1760218295900,2.68422167,3725.5,3724.8,2.68468608]
[1760218296332,2.68369637,3726.3,3724.8,2.68468608]
[1760218296333,0.42081982,3729.7,3725.4,13.12390062]
[1760218296614,0.001,3730.0,3728.8,2.89951623]
[1760218296799,0.001,3730.0,3729.1,2.68161218]
[1760218297175,0.001,3730.0,3729.1,3.1668283]
[1760218297414,0.001,3730.0,3729.5,4.60132457]
[1760218297778,0.001,3730.0,3729.1,1.26282313]
[1760218297974,0.001,3730.0,3728.8,0.6761]
[1760218298179,0.001,3730.0,3728.5,0.2177]
[1760218298393,2.68136146,3729.5,3728.5,2.68202352]
[1760218298619,2.78477465,3729.8,3728.8,2.68182162]
[1760218298784,0.1036,3729.8,3728.9,2.68171419]
[1760218299112,0.1336,3729.2,3729.1,2.68161218]
[1760218300010,0.001,3730.0,3729.5,2.68132457]
[1760218300182,0.1336,3729.8,3729.5,2.68132457]
[1760218300382,0.1336,3729.8,3729.5,3.13972457]
[1760218301929,0.001,3730.0,3729.5,3.30013781]
[1760218302126,0.001,3730.0,3729.5,3.27332457]
[1760218304326,0.1336,3729.9,3729.5,2.68132457]
[1760218304996,0.1336,3729.9,3729.3,0.1336]
[1760218305196,0.001,3730.0,3729.3,2.68146223]
[1760218305197,0.1336,3729.7,3729.3,2.68146223]
[1760218305426,0.001,3730.0,3729.3,2.68144527]
[1760218305606,0.1336,3729.4,3729.2,2.68153209]
[1760218305803,0.1336,3729.4,3729.1,0.002]
[1760218306134,2.68225533,3729.6,3729.1,0.002]
[1760218306300,0.1336,3729.3,3729.1,0.002]
[1760218307320,2.78674027,3729.2,3729.1,0.002]
[1760218310215,0.001,3729.6,3729.1,0.002]
[1760218311050,0.1336,3729.2,3729.1,0.002]
[1760218312048,2.92034027,3729.2,3729.1,0.002]
[1760218313247,0.1336,3729.2,3729.1,0.002]
[1760218313621,2.92034027,3729.2,3729.1,0.002]
[1760218314141,2.81514027,3729.2,3729.1,0.002]
[1760218314651,0.001,3729.6,3729.1,0.002]
[1760218314940,2.68154027,3729.2,3729.1,0.002]
[1760218315538,2.68139647,3729.4,3729.1,0.002]
[1760218315746,2.68149546,3729.3,3729.1,0.002]
[1760218316857,2.68225312,3729.6,3729.1,0.002]
[1760218317019,2.68147048,3729.3,3729.1,0.002]
[1760218317439,2.68226458,3729.6,3729.1,0.002]
[1760218317837,0.001,3729.6,3729.1,0.002]
[1760218318057,0.001,3729.6,3729.2,0.4747]
[1760218318241,0.001,3729.6,3729.4,2.68138337]
[1760218318441,0.001,3729.6,3729.3,0.4747]
[1760218318659,0.001,3729.6,3729.1,0.002]
[1760218318862,0.001,3729.6,3729.2,2.68154027]
[1760218319052,0.001,3729.6,3729.1,0.002]
[1760218319769,0.001,3729.6,3729.1,0.4767]
[1760218320266,0.001,3729.6,3729.1,0.002]
[1760218320431,2.68154027,3729.2,3729.1,0.002]
[1760218320626,2.78844027,3729.2,3729.1,0.002]
[1760218321269,4.70844027,3729.2,3729.1,0.002]
[1760218321570,5.34204027,3729.2,3729.1,0.002]
[1760218322273,2.78844027,3729.2,3729.1,0.002]
[1760218322477,0.001,3729.6,3729.1,0.002]
[1760218322781,0.001,3729.6,3729.1,2.68358092]
[1760218322975,0.001,3729.6,3729.1,0.002]
[1760218323135,2.68225373,3729.6,3729.1,0.002]
[1760218323342,0.1,3729.6,3729.1,0.002]
[1760218323576,0.001,3729.6,3729.1,0.002]
[1760218323774,0.001,3729.6,3729.3,2.68146837]
[1760218324076,0.001,3729.6,3729.5,2.68132457]
[1760218324743,0.001,3729.6,3729.2,2.68152648]
[1760218324938,0.1336,3729.4,3729.1,0.002]
[1760218325172,0.1336,3729.2,3729.1,0.002]
[1760218325675,0.1336,3729.2,3729.1,3.15831218]
[1760218325837,0.1336,3729.5,3729.1,0.4767]
[1760218326039,0.1336,3729.5,3729.1,3.15830598]
[1760218326235,0.1336,3729.5,3729.1,0.002]
[1760218326452,0.1336,3729.5,3729.2,0.4747]
[1760218326648,0.1336,3729.5,3729.3,3.15616837]
[1760218327037,0.1336,3729.5,3729.2,2.68153566]
[1760218327238,0.1336,3729.5,3729.4,2.68139647]
[1760218327437,0.001,3729.6,3729.5,2.68132457]
[1760218327678,0.001,3729.6,3729.5,3.15602457]
[1760218328369,0.001,3729.6,3729.1,0.002]
[1760218328976,0.001,3729.6,3729.1,0.02881612]
[1760218329380,2.68225579,3729.6,3729.1,0.002]
[1760218329880,0.001,3729.6,3729.1,0.002]
[1760218330175,2.68138658,3729.5,3729.1,0.002]
[1760218330378,0.001,3729.6,3729.1,0.002]
[1760218330543,2.68226391,3729.6,3729.1,0.002]
[1760218331373,0.001,3729.6,3729.2,0.4747]
[1760218331697,0.001,3729.6,3729.1,0.002]
[1760218331897,2.68133446,3729.5,3729.1,0.002]
[1760218332105,0.001,3729.6,3729.1,0.002]
[1760218332401,2.68137731,3729.5,3729.1,0.002]
[1760218332960,0.001,3729.6,3729.1,0.002]
[1760218333165,0.001,3729.6,3729.2,2.68148406]
[1760218333360,0.001,3729.6,3729.3,0.02681468]
[1760218333602,0.001,3729.6,3729.3,2.70826698]
[1760218334003,0.001,3729.6,3729.3,0.02681468]
[1760218334202,0.001,3729.6,3729.1,0.4767]
[1760218334203,0.001,3729.6,3729.1,0.002]
[1760218334735,2.6814416,3729.4,3729.1,0.002]
[1760218335067,2.68154027,3729.2,3729.1,0.002]
[1760218335681,2.78144027,3729.2,3729.1,0.002]
[1760218336299,5.33504027,3729.2,3729.1,0.002]
[1760218336600,2.68211565,3728.4,3728.3,0.002]
[1760218336773,4.60211565,3728.4,3728.3,0.002]
[1760218336973,4.70201565,3728.4,3728.3,0.002]
[1760218339915,2.6821093,3728.5,3728.3,0.002]
[1760218340103,2.68194402,3728.7,3728.3,0.002]
[1760218340303,0.0999,3729.0,3728.3,0.002]
[1760218340603,1.92,3729.4,3728.3,0.002]
[1760218340604,2.68211565,3728.4,3728.3,0.002]
[1760218340919,0.1336,3728.4,3728.3,2.68418759]
[1760218342097,0.1336,3728.4,3728.3,0.002]
[1760218342822,2.91561565,3728.4,3728.3,0.002]
[1760218343127,0.001,3729.5,3728.3,0.4547]
[1760218343279,2.68232717,3729.5,3728.4,2.68211565]
[1760218343684,2.68147188,3729.3,3728.4,2.68211565]
[1760218343909,2.68154624,3729.2,3728.4,2.68211565]
[1760218344520,0.001,3729.5,3728.7,2.68184666]
[1760218344690,2.68140515,3729.4,3728.3,3.13681647]
[1760218345033,0.6336,3729.3,3728.3,0.002]
[1760218345177,2.68211565,3728.4,3728.3,0.002]
[1760218345688,2.78201565,3728.4,3728.3,0.002]
[1760218346695,4.70201565,3728.4,3728.3,0.002]
[1760218348807,5.33561565,3728.4,3728.3,0.002]
[1760218349130,4.70201565,3728.4,3728.3,0.002]
[1760218349648,2.78201565,3728.4,3728.3,0.002]
[1760218350143,2.68211565,3728.4,3728.3,0.002]
[1760218350505,2.78201565,3728.4,3728.3,0.002]
[1760218352438,1.04491461,3729.6,3728.3,0.002]
[1760218352439,0.1009,3729.5,3728.3,2.68418147]
[1760218352647,0.001,3729.5,3728.4,3.43002767]
[1760218352852,0.001,3729.5,3729.4,2.68139647]
[1760218353353,0.001,3729.5,3729.4,3.13409647]
[1760218353565,0.001,3729.5,3729.4,5.08091043]
[1760218353716,0.001,3729.9,3729.8,2.6811089]
[1760218353921,0.001,3729.9,3729.8,3.35094089]
[1760218354259,0.1336,3730.7,3730.0,2.68092423]
[1760218354428,0.1336,3730.7,3730.2,2.9111214]
[1760218354760,0.1336,3730.7,3730.2,2.6808214]
[1760218354919,0.1336,3730.7,3729.9,0.1336]
[1760218355246,2.68177055,3730.3,3729.2,2.91182427]
[1760218355450,0.001,3730.3,3729.0,0.4527]
[1760218355817,0.001,3730.3,3729.7,2.68117345]
[1760218356023,0.001,3730.3,3729.6,2.6812455]
[1760218356223,0.001,3730.3,3729.5,0.4527]
[1760218356424,0.001,3730.3,3728.8,0.4527]
[1760218356644,2.68095676,3730.1,3729.2,2.6815123]
[1760218356846,0.1048,3730.0,3728.4,0.26841815]
[1760218357028,0.001,3729.5,3728.5,2.6820394]
[1760218357226,0.001,3729.5,3728.2,0.683]
[1760218357436,2.68139647,3729.4,3728.5,2.6819718]
[1760218357656,2.68161376,3729.1,3728.3,0.002]
[1760218357822,0.001,3729.5,3728.3,0.31570981]
[1760218358027,2.68153839,3729.3,3728.4,2.68205448]
[1760218358243,2.68153839,3729.3,3728.3,0.31570981]
[1760218358244,0.001,3729.5,3728.3,0.002]
[1760218358762,0.1057,3729.4,3728.3,0.002]
[1760218358968,2.7871114,3729.4,3728.3,0.002]
[1760218359270,0.001,3729.5,3728.4,0.4527]
[1760218359575,0.001,3729.5,3728.9,2.6816905]
[1760218359771,0.001,3729.5,3729.0,2.68167919]
[1760218359975,0.001,3729.5,3728.4,0.4527]
[1760218360279,0.001,3729.5,3728.4,3.13475147]
[1760218360570,0.001,3729.5,3729.2,2.68150212]
[1760218360871,0.001,3729.5,3729.3,2.68145451]
[1760218361101,0.001,3729.5,3728.6,0.4678]
[1760218361308,0.001,3729.5,3728.3,0.002]
[1760218361507,0.001,3729.5,3728.4,0.4678]
[1760218361689,0.001,3729.5,3728.9,2.68174191]
[1760218362280,0.001,3729.5,3729.4,2.68139647]
[1760218362480,0.001,3729.5,3729.4,2.70821043]
[1760218362795,0.001,3729.5,3729.4,3.17601043]
[1760218362991,0.001,3729.5,3729.4,3.14919647]
[1760218363571,0.001,3729.5,3728.9,0.53635903]
[1760218363911,0.001,3729.5,3729.4,2.68139647]
[1760218364062,0.001,3729.5,3729.4,2.70821043]
[1760218364397,0.001,3729.5,3729.4,3.17601043]
[1760218364571,0.001,3729.5,3729.4,3.14919647]
[1760218366210,0.001,3729.5,3729.4,3.17601043]
[1760218366377,0.001,3729.5,3729.4,3.86854694]
[1760218366709,0.001,3729.5,3729.4,4.50214694]
[1760218367392,0.001,3729.5,3729.4,6.42214694]
[1760218369505,0.001,3729.5,3729.4,5.65494694]
[1760218369662,0.001,3729.5,3729.4,6.28854694]
[1760218370559,0.001,3729.5,3729.4,5.65494694]
[1760218370960,0.001,3729.5,3729.4,3.14919647]